[Event "WSTCC-50 2024"]
[Site "Krakow"]
[Date "2024.07.02"]
[Round "1.5"]
[White "Delaney, John"]
[Black "Mrva, Martin"]
[Result "0-1"]
[ECO "B77"]
[WhiteElo "2167"]
[BlackElo "2361"]
[Annotator "RC"]
[PlyCount "60"]
[EventDate "2024.07.01"]
[EventType "team-tourn"]
[EventCountry "POL"]
[SourceTitle "playchess.com"]
[Source "ChessBase"]
[SourceQuality "1"]
[TimeControl "40/5400+30:1800+30"]

1. e4 {[%emt 0:00:05]} c5 {[%emt 0:00:41]} 2. Nf3 {[%emt 0:00:24]} d6 {[%emt 0:01:04]} 3. d4 {[%emt 0:01:00]} cxd4 {[%emt 0:00:06]} 4. Nxd4 {[%emt 0:00:12]} Nf6 {[%emt 0:00:08]} 5. Nc3 {[%emt 0:00:08]} g6 {[%emt 0:00:37]} 6. Be3 {[%emt 0:03:00]} Bg7 {[%emt 0:02:08]} 7. f3 {[%emt 0:00:12]} O-O {[%emt 0:03:40]} 8. Qd2 {[%emt 0:00:31]} Nc6 {[%emt 0:00:07]} 9. Bc4 {[%emt 0:00:24]} Nxd4 {[%emt 0:04:09]} 10. Bxd4 {[%emt 0:00:57]} Be6 {[%emt 0:00:08]} 11. Bxe6 {[%emt 0:14:28]} fxe6 {[%emt 0:00:32]} 12. O-O {[%emt 0:00:20]} Rc8 {[%emt 0:10:53]} 13. a4 {[%emt 0:04:15]} Qa5 {[%emt 0:01:35]} 14. Rfd1 {[%emt 0:11:31]} Rc4 {[%emt 0:04:56]} 15. Be3 {[%emt 0:07:39]} Rfc8 {[%emt 0:06:38]} 16. Ra3 {[%emt 0:04:49]} Nd7 {[%emt 0:06:21]} 17. Rb3 {[%emt 0:08:17]} b6 {[%emt 0:02:08]} 18. h4 {[%emt 0:09:52]} Nc5 {[%emt 0:18:16]} 19. Ra3 {[%emt 0:04:11]} Bxc3 {[%emt 0:07:47]} 20. bxc3 {[%emt 0:02:12]} Rxa4 {[%emt 0:00:25]} 21. Rxa4 {[%emt 0:11:05]} Nxa4 {[%emt 0:00:08]} 22. Ra1 {[%emt 0:01:23]} b5 {[%emt 0:00:46]} 23. Bg5 {[%emt 0:06:35]} Kf7 {[%emt 0:08:30]} 24. Rd1 {[%emt 0:04:35]} Qxc3 {[%emt 0:01:24]} 25. Qf4+ {[%emt 0:00:37]} Ke8 {[%emt 0:00:05]} 26. Kh1 {[%emt 0:00:35]} Qe5 {[%emt 0:01:20]} 27. Qe3 {[%emt 0:00:30]} Qc5 {[%emt 0:00:33]} 28. e5 {[%emt 0:00:23]} d5 {[%emt 0:01:19]} 29. Qd3 {[%emt 0:00:57]} Nb2 {[%emt 0:00:25]} 30. Qd4 {[%emt 0:02:17]} Nxd1 {[%emt 0:00:21]} 0-1

[Event "WSTCC-50 2024"]
[Site "Krakow"]
[Date "2024.07.02"]
[Round "1.5"]
[White "Bouah, Lyndon"]
[Black "Krause, Ullrich"]
[Result "1-0"]
[ECO "D35"]
[WhiteElo "1996"]
[BlackElo "2171"]
[Annotator "RC"]
[PlyCount "71"]
[EventDate "2024.07.01"]
[EventType "team-tourn"]
[EventCountry "POL"]
[SourceTitle "playchess.com"]
[Source "ChessBase"]
[SourceQuality "1"]
[TimeControl "40/5400+30:1800+30"]

1. c4 {[%emt 0:00:07]} e6 {[%emt 0:00:20]} 2. Nc3 {[%emt 0:00:27]} d5 {[%emt 0:00:19]} 3. d4 {[%emt 0:01:23]} Nf6 {[%emt 0:00:09]} 4. cxd5 {[%emt 0:01:45]} Nxd5 {[%emt 0:00:54]} 5. e4 {[%emt 0:01:58]} Nxc3 {[%emt 0:00:07]} 6. bxc3 {[%emt 0:00:13]} c5 {[%emt 0:00:09]} 7. Rb1 {[%emt 0:02:11]} cxd4 {[%emt 0:01:31]} 8. cxd4 {[%emt 0:00:08]} Be7 {[%emt 0:01:54]} 9. Nf3 {[%emt 0:02:07]} O-O {[%emt 0:00:26]} 10. h4 {[%emt 0:04:14]} b6 {[%emt 0:02:33]} 11. h5 {[%emt 0:02:29]} Ba6 {[%emt 0:05:27]} 12. Rh3 {[%emt 0:04:23]} Bxf1 {[%emt 0:01:14]} 13. Kxf1 {[%emt 0:00:08]} Nd7 {[%emt 0:16:17]} 14. e5 {[%emt 0:07:27]} f6 {[%emt 0:09:22]} 15. Rg3 {[%emt 0:06:45]} fxe5 {[%emt 0:11:34]} 16. Bh6 {[%emt 0:02:09]} Bf6 {[%emt 0:15:13]} 17. Bxg7 {[%emt 0:05:06]} Bxg7 {[%emt 0:00:26]} 18. h6 {[%emt 0:00:10]} Rf7 {[%emt 0:05:58]} 19. Ng5 {[%emt 0:13:54]} Rf6 {[%emt 0:03:34]} 20. hxg7 {[%emt 0:01:03]} Qe8 {[%emt 0:08:03]} 21. Rbb3 {[%emt 0:08:10]} Rd8 {[%emt 0:03:59]} 22. Rbd3 {[%emt 0:03:13]} e4 {[%emt 0:02:01]} 23. Nxe4 {[%emt 0:00:55]} Rh6 {[%emt 0:01:45]} 24. Qf3 {[%emt 0:05:44]} Qh5 {[%emt 0:04:05]} 25. Qf4 {[%emt 0:03:05]} Qh1+ {[%emt 0:02:01]} 26. Ke2 {[%emt 0:00:16]} Rh4 {[%emt 0:00:23]} 27. Nf6+ {[%emt 0:06:53]} Nxf6 {[%emt 0:00:07]} 28. Qxf6 {[%emt 0:00:03]} Re8 {[%emt 0:00:20]} 29. Rdf3 {[%emt 0:00:18]} Re4+ {[%emt 0:00:32]} 30. Re3 {[%emt 0:00:54]} Rxe3+ {[%emt 0:00:48]} 31. fxe3 {[%emt 0:01:00]} Qb1 {[%emt 0:02:11]} 32. Rf3 {[%emt 0:01:21]} Qc2+ {[%emt 0:01:14]} 33. Kf1 {[%emt 0:00:22]} Qc1+ {[%emt 0:00:14]} 34. Kf2 {[%emt 0:00:09]} Qc2+ {[%emt 0:00:20]} 35. Kg1 {[%emt 0:00:19]} Qc1+ {[%emt 0:00:18]} 36. Rf1 {[%emt 0:00:56]} 1-0

[Event "WSTCC-50 2024"]
[Site "Krakow"]
[Date "2024.07.02"]
[Round "1.6"]
[White "Flear, Glenn C"]
[Black "Jhunjhnuwala, Naresh"]
[Result "1-0"]
[ECO "A59"]
[WhiteElo "2390"]
[BlackElo "2009"]
[Annotator "TA"]
[PlyCount "65"]
[EventDate "2024.07.01"]
[EventType "team-tourn"]
[EventCountry "POL"]
[SourceTitle "playchess.com"]
[Source "ChessBase"]
[SourceQuality "1"]
[TimeControl "40/5400+30:1800+30"]

{[%evp 21,65,66,64,58,49,35,27,28,28,30,47,39,86,85,86,99,80,85,75,61,62,60,106,100,90,36,147,156,142,145,133,97,89,98,464,106,388,377,754,745,694,718,1193,1183,3240,3300]} 1. d4 {[%emt 0:00:06]} Nf6 {[%emt 0:00:04]} 2. c4 {[%emt 0:00:08]} c5 {[%emt 0:00:13]} 3. d5 {[%emt 0:00:11]} b5 {[%emt 0:00:12]} 4. cxb5 {[%emt 0:00:09]} a6 {[%emt 0:00:08]} 5. bxa6 {[%emt 0:00:09]} Bxa6 {[%emt 0:00:33]} 6. Nc3 {[%emt 0:00:16]} g6 {[%emt 0:00:37]} 7. Nf3 {[%emt 0:00:19]} Bg7 {[%emt 0:00:26]} 8. e4 {[%emt 0:00:13]} Bxf1 {[%emt 0:00:05]} 9. Kxf1 {[%emt 0:00:05]} d6 {[%emt 0:00:49]} 10. g3 {[%emt 0:00:19]} O-O {[%emt 0:00:29]} 11. Kg2 {[%emt 0:00:14]} Qb6 {[%emt 0:06:01]} 12. a4 {[%emt 0:31:56][%cal Ba2a4,Ba4a5][%mdl 32]} Na6 {[%emt 0:05:05]} 13. a5 {[%emt 0:00:57]} Qb7 {[%emt 0:00:10]} 14. Nd2 {[%emt 0:00:48] White has an edge.} Nb4 {[%emt 0:00:48]} 15. Nc4 {[%emt 0:00:55]} Nd7 {[%emt 0:01:41]} 16. Bf4 {[%emt 0:06:25]} Qa6 {[%emt 0:09:24]} (16... f5 $14 {was preferrable.}) 17. Qe2 $16 {[%emt 0:02:37]} Nc2 {[%emt 0:00:31]} 18. Qxc2 {[%emt 0:07:55]} Qxc4 {[%emt 0:00:10]} 19. Ra4 $36 {[%emt 0:00:26][%mdl 2048] White is in control.} Qa6 {[%emt 0:00:25]} 20. b3 {[%emt 0:00:48]} Rfb8 {[%emt 0:04:51]} 21. Rha1 {[%emt 0:01:08]} Rb4 {[%emt 0:02:55]} (21... Bf6 $14 {is superior.}) 22. R1a2 {[%emt 0:00:47]} Rab8 {[%emt 0:06:11]} 23. R2a3 {[%emt 0:07:02]} (23. Rxb4 $16 cxb4 24. Qe2 Qxe2 25. Nxe2) 23... c4 {[%emt 0:03:05]} (23... Bxc3 $1 $14 24. Qxc3 Nf6) 24. Rxb4 {[%emt 0:03:29]} Rxb4 {[%emt 0:00:08]} 25. bxc4 {[%emt 0:02:34]} Rxc4 {[%emt 0:10:47]} 26. Qe2 {[%emt 0:02:20]} Nc5 {[%emt 0:00:27] Wards off Ra4} (26... Bxc3 $2 {too greedy.} 27. Rxc3 $18) 27. e5 {[%emt 0:04:26]} dxe5 {[%emt 0:05:32][%mdl 8192] [#]} (27... Bxe5 $16 {is more resistant.} 28. Bxe5 dxe5) 28. Bxe5 $2 {[%emt 0:00:17]} (28. Be3 $1 $18 {[%cal Re3c5] is the precise move to win. Black must now prevent Bxc5.} Nb7 29. Rb3) 28... Rb4 $2 {[%emt 0:00:20][%mdl 8192]} (28... Bxe5 $16 29. Qxe5 Qb7) 29. Bxg7 $18 {[%emt 0:01:26]} Kxg7 $2 {[%emt 0:06:57]} (29... Qxe2 30. Nxe2 Kxg7) 30. Qxe7 {[%emt 0:00:40] White is clearly winning.} Nd3 {[%emt 0:00:23]} 31. Qe3 {[%emt 0:01:40]} Rb2 {[%emt 0:02:28]} 32. Nd1 {[%emt 0:01:47][%csl LRb2,LRd3]} Re2 {[%emt 0:02:12]} 33. Qxd3 {[%emt 0:00:22] Weighted Error Value: White=0.36/Black=0.72.  Loses game:     	---       	Black=2      Missed win:     	White=1     	---        Mistake:       	White=1     	Black=4      OK:         	White=5     	Black=8      Best:        	White=4     	---} ({Weaker is} 33. Qxe2 Nf4+ 34. gxf4 Qxe2 $11) 1-0

[Event "WSTCC-50 2024"]
[Site "Krakow"]
[Date "2024.07.02"]
[Round "1.6"]
[White "Motuz, Karol"]
[Black "McHugh, Kevin"]
[Result "1-0"]
[ECO "D74"]
[WhiteElo "2293"]
[BlackElo "1938"]
[Annotator "TA"]
[PlyCount "83"]
[EventDate "2024.07.01"]
[EventType "team-tourn"]
[EventCountry "POL"]
[SourceTitle "playchess.com"]
[Source "ChessBase"]
[SourceQuality "1"]
[TimeControl "40/5400+30:1800+30"]

{[%evp 20,83,87,80,87,88,98,104,108,103,141,124,124,112,115,119,152,66,74,92,99,63,452,466,612,612,604,590,603,507,648,642,626,249,246,247,251,245,243,239,218,207,206,199,223,179,269,251,258,258,316,297,315,297,403,389,497,493,472,330,581,554,597,595,531,503]} 1. c4 {[%emt 0:00:04]} Nf6 {[%emt 0:00:07]} 2. d4 {[%emt 0:00:27]} g6 {[%emt 0:00:09]} 3. g3 {[%emt 0:00:11]} Bg7 {[%emt 0:00:30]} 4. Bg2 {[%emt 0:00:02]} d5 {[%emt 0:00:19]} 5. cxd5 {[%emt 0:00:36]} Nxd5 {[%emt 0:00:11]} 6. Nf3 {[%emt 0:00:23]} O-O {[%emt 0:00:14]} 7. O-O {[%emt 0:00:27]} Nd7 {[%emt 0:04:26]} 8. e4 {[%emt 0:03:07]} N5b6 {[%emt 0:00:59]} 9. Nc3 {[%emt 0:02:41]} Nf6 {[%emt 0:01:23]} 10. h3 {[%emt 0:03:46]} c6 {[%emt 0:09:10]} 11. Re1 {[%emt 0:18:33]} Be6 {[%emt 0:02:05]} 12. b3 {[%emt 0:05:55]} Qc8 {[%emt 0:05:02]} 13. Kh2 {[%emt 0:05:04]} Rd8 {White is better.} 14. Qc2 {[%emt 0:06:06]} Rd7 {[%emt 0:10:01]} 15. Be3 {[%emt 0:02:10]} Ne8 {[%emt 0:06:07]} 16. Rad1 {[%emt 0:03:58]} Nc7 {[%emt 0:02:00]} 17. Ng5 {[%emt 0:02:10]} Qd8 {[%emt 0:03:06][%cal Rg7d4]} 18. Nxe6 {[%emt 0:05:14]} ({Better is} 18. f4 $16) 18... Nxe6 $14 {[%emt 0:00:12]} 19. d5 {[%emt 0:02:41]} cxd5 {[%emt 0:01:01]} 20. exd5 {[%emt 0:02:06][%cal Be4d5,Bd5e6,Be6f7][%mdl 32]} (20. Nxd5 {simplifies} Nxd5 21. exd5 Nf8 22. Qe2) 20... Rc8 $2 {[%emt 0:07:02][%mdl 8192] A mistake that costs the game.} (20... Nc7 $14) 21. dxe6 $18 {[%emt 0:02:56]} Rxd1 {[%emt 0:00:17]} 22. Rxd1 {[%emt 0:02:04]} Qc7 {[%emt 0:00:29]} 23. exf7+ {[%emt 0:01:43]} Kf8 {[%emt 0:02:37] [#]} 24. Qe4 $1 {[%emt 0:04:24]} Bxc3 {[%emt 0:04:46] Black is weak on the light squares} (24... Qxc3 25. Rc1) 25. Rc1 {[%emt 0:02:57]} Qd7 {[%emt 0:04:28]} 26. Qxb7 $2 {[%emt 0:02:53]} (26. h4 Rc6 27. Qf4) 26... Qxb7 {[%emt 0:04:41]} 27. Bxb7 {[%emt 0:00:02] This pair of bishops is nice.} Rc7 {[%emt 0:00:18]} 28. Be4 {[%emt 0:03:39] Threatens to win with Bd4.} Be5 {[%emt 0:00:45]} 29. Rxc7 {[%emt 0:01:09]} Bxc7 {[%emt 0:00:09][%mdl 4096] Endgame. KBB-KBN} 30. h4 {[%emt 0:03:08][%cal Bh3h4,Bh4h5][%mdl 32]} Kxf7 {[%emt 0:01:07] [#]} 31. h5 $1 {[%emt 0:00:25][%mdl 512]} Nc8 {[%emt 0:04:49]} (31... a5 32. h6) 32. Kh3 {[%emt 0:05:17]} Nd6 {[%emt 0:03:52]} (32... Bb6 {was called for.} 33. Bxb6 Nxb6) 33. Bd3 {[%emt 0:01:21]} a5 {[%emt 0:01:09]} 34. Kg4 {[%emt 0:02:16] Wards off Nf5} Kf6 {[%emt 0:02:05]} 35. Bd2 {[%emt 0:02:52]} e6 {[%emt 0:03:41][%cal Be7e6,Be6e5][%mdl 32]} 36. Bc3+ {[%emt 0:00:32]} e5 {[%emt 0:03:07]} 37. f4 {[%emt 0:02:27][%cal Bf2f4,Bf4e5][%mdl 32]} Nf7 {[%emt 0:00:11]} 38. hxg6 {[%emt 0:00:51]} hxg6 {[%emt 0:00:14]} 39. a4 {[%emt 0:02:09]} Nh6+ $2 {[%emt 0:01:00]} (39... g5 {was worth a try.} 40. Bc4 gxf4 41. gxf4 Nd8) 40. Kf3 {[%emt 0:00:28] White is clearly winning.} Nf7 {[%emt 0:00:56]} 41. Bc4 {[%emt 0:30:58]} Nd8 {[%emt 0:32:51]} 42. fxe5+ {[%emt 0:00:46] Weighted Error Value: White=0.40/Black=0.57.  Loses game:     	---       	Black=1      Mistake:       	White=1     	Black=2      Inaccurate:     	White=2     	Black=3      OK:         	White=13    	Black=10     Best:        	White=2     	---} 1-0

[Event "WSTCC-50 2024"]
[Site "Krakow"]
[Date "2024.07.02"]
[Round "1.6"]
[White "Lampe, Dirk"]
[Black "Bhawoodien, Shabir Hussain"]
[Result "1-0"]
[ECO "C88"]
[WhiteElo "2158"]
[BlackElo "1990"]
[Annotator "RC"]
[PlyCount "73"]
[EventDate "2024.07.01"]
[EventType "team-tourn"]
[EventCountry "POL"]
[SourceTitle "playchess.com"]
[Source "ChessBase"]
[SourceQuality "1"]
[TimeControl "40/5400+30:1800+30"]

1. e4 {[%emt 0:00:08]} e5 {[%emt 0:00:06]} 2. Nf3 {[%emt 0:00:15]} Nc6 {[%emt 0:00:04]} 3. Bb5 {[%emt 0:00:21]} a6 {[%emt 0:00:45]} 4. Ba4 {[%emt 0:00:20]} Nf6 {[%emt 0:00:03]} 5. O-O {[%emt 0:00:10]} Be7 {[%emt 0:00:50]} 6. Re1 {[%emt 0:00:24]} b5 {[%emt 0:00:16]} 7. Bb3 {[%emt 0:00:12]} O-O {[%emt 0:02:03]} 8. a4 {[%emt 0:01:46]} b4 {[%emt 0:06:18]} 9. d4 {[%emt 0:02:33]} d6 {[%emt 0:01:21]} 10. dxe5 {[%emt 0:01:12]} Nxe5 {[%emt 0:05:36]} 11. Nxe5 {[%emt 0:00:21]} dxe5 {[%emt 0:00:05]} 12. Qe2 {[%emt 0:04:28]} a5 {[%emt 0:06:29]} 13. Nd2 {[%emt 0:04:55]} Bb7 {[%emt 0:07:36]} 14. Qb5 {[%emt 0:27:50]} Qd7 {[%emt 0:18:55]} 15. Qxe5 {[%emt 0:11:12]} Ng4 {[%emt 0:05:46]} 16. Qb5 {[%emt 0:06:30]} Qd4 {[%emt 0:07:24]} 17. Qe2 {[%emt 0:07:45]} Bc5 {[%emt 0:04:24]} 18. Rf1 {[%emt 0:03:05]} Ne5 {[%emt 0:09:09]} 19. Nf3 {[%emt 0:13:52]} Nxf3+ {[%emt 0:00:23]} 20. Qxf3 {[%emt 0:00:07]} Bxe4 {[%emt 0:05:20]} 21. Qf4 {[%emt 0:02:59]} Bb7 {[%emt 0:03:05]} 22. Qxd4 {[%emt 0:01:19]} Bxd4 {[%emt 0:00:01]} 23. Bf4 {[%emt 0:01:47]} c5 {[%emt 0:03:19]} 24. Be3 {[%emt 0:03:45]} Bxb2 {[%emt 0:01:48]} 25. Bxc5 {[%emt 0:02:52]} Bxa1 {[%emt 0:05:19]} 26. Bxf8 {[%emt 0:00:21]} Bd4 {[%emt 0:03:34]} 27. Bd6 {[%emt 0:00:11]} Ra6 {[%emt 0:01:06]} 28. Re1 {[%emt 0:00:28]} h5 {[%emt 0:00:57]} 29. Bg3 {[%emt 0:00:59]} Rf6 {[%emt 0:02:06]} 30. Re8+ {[%emt 0:00:34]} Kh7 {[%emt 0:00:00]} 31. Re7 {[%emt 0:00:14]} g5 {[%emt 0:00:29]} 32. Rxb7 {[%emt 0:01:02]} h4 {[%emt 0:00:25]} 33. Bb8 {[%emt 0:01:22]} Rxf2 {[%emt 0:01:05]} 34. Ba7 {[%emt 0:00:10]} h3 {[%emt 0:00:44]} 35. Bxd4 {[%emt 0:00:56]} Rxg2+ {[%emt 0:00:01]} 36. Kh1 {[%emt 0:00:09]} Rd2 {[%emt 0:00:10]} 37. Bg1 {[%emt 0:00:32]} 1-0

[Event "WSTCC-50 2024"]
[Site "Krakow"]
[Date "2024.07.02"]
[Round "1.7"]
[White "Jhunjhnuwala, Ramesh"]
[Black "Arkell, Keith C"]
[Result "0-1"]
[ECO "B13"]
[WhiteElo "2050"]
[BlackElo "2375"]
[Annotator "TA"]
[PlyCount "96"]
[EventDate "2024.07.01"]
[EventType "team-tourn"]
[EventCountry "POL"]
[SourceTitle "playchess.com"]
[Source "ChessBase"]
[SourceQuality "1"]
[TimeControl "40/5400+30:1800+30"]

{[%evp 11,96,12,20,8,9,-37,-34,-25,-29,-34,-25,-50,-29,-29,-10,-10,-9,-55,-45,-58,-40,-93,-93,-104,-99,-166,-144,-267,-253,-229,-243,-241,-237,-224,-227,-246,-228,-254,-225,-241,-167,-171,-164,-177,-177,-165,-177,-220,-226,-315,-304,-375,-365,-278,-246,-250,-190,-197,-227,-204,-150,-143,-140,-506,-506,-525,-478,-588,-579,-1327,-1312,-1035,-734,-6705,-6758,-29970,-29970,-29970,-29971,-29972,-29973,-29973,-29974,-29968,-29972,-29962,-5587]} 1. e4 {[%emt 0:00:06]} c6 {[%emt 0:00:05]} 2. d4 {[%emt 0:00:05]} d5 {[%emt 0:00:04]} 3. exd5 {[%emt 0:00:37]} cxd5 {[%emt 0:00:05]} 4. Bd3 {[%emt 0:00:13]} Nc6 {[%emt 0:00:06]} 5. c3 {[%emt 0:00:18]} Nf6 {[%emt 0:00:05]} 6. h3 {[%emt 0:02:08]} g6 {[%emt 0:00:06]} 7. Nf3 {[%emt 0:00:31]} Bf5 {[%emt 0:00:05]} 8. g4 {[%emt 0:07:26]} (8. Ne5 $11) 8... Bxd3 $15 {[%emt 0:00:06]} 9. Qxd3 {[%emt 0:00:12] Black is slightly better.} h5 {[%emt 0:00:44]} 10. g5 {[%emt 0:01:09]} Ne4 {[%emt 0:00:16]} 11. Nbd2 {[%emt 0:01:17]} Nxd2 {[%emt 0:01:25]} 12. Bxd2 {[%emt 0:00:35]} Bg7 {[%emt 0:00:50]} 13. Bf4 {[%emt 0:14:03]} Qd7 {[%emt 0:00:52]} 14. O-O-O {[%emt 0:02:32]} (14. Kf1 $11 {is superior.}) 14... O-O {[%emt 0:03:24]} 15. Kb1 {[%emt 0:07:24]} b5 {[%emt 0:00:33]} 16. Ne5 {[%emt 0:09:12]} (16. Qxb5 $2 {loses.} Qf5+ 17. Ka1 (17. Rd3 $2 Nb4 $19) 17... Qxf4 $19) ({White should try} 16. Be5 $1 $15) 16... Bxe5 $17 {[%emt 0:05:53]} 17. Bxe5 {[%emt 0:00:30]} b4 {[%emt 0:02:10]} 18. Rc1 {[%emt 0:17:08]} (18. cxb4 $17 Nxb4 19. Qf3) 18... Rfc8 {[%emt 0:06:26]} 19. Qf3 {[%emt 0:17:41]} (19. Bg3 $17 {is a better defense.}) 19... Nxe5 $19 {[%emt 0:07:27]} 20. dxe5 {[%emt 0:00:04]} bxc3 {[%emt 0:00:23]} 21. Rxc3 {[%emt 0:06:34]} Rxc3 {[%emt 0:00:07]} 22. Qxc3 {[%emt 0:01:20][%mdl 4096] Endgame. KQR-KQR} Qf5+ {[%emt 0:00:11]} 23. Ka1 {[%emt 0:00:41]} Rc8 $40 {[%emt 0:09:33][%mdl 128] Repels Qc7. Black wants a kill.} (23... Qxg5 24. Qc6 Rd8 25. e6 $19) 24. Qe3 {[%emt 0:01:22]} Rc2 {[%emt 0:03:36]} 25. f4 {[%emt 0:00:58]} Qe4 {[%emt 0:00:26]} 26. Qxe4 {[%emt 0:01:45]} dxe4 {[%emt 0:01:35] KR-KR} 27. Re1 {[%emt 0:00:37][%cal Oa1b1]} Rf2 {[%emt 0:00:36]} 28. b4 {[%emt 0:00:08]} Rxf4 {[%emt 0:00:06]} 29. Kb2 {[%emt 0:01:13] [#]} e3 $1 {[%emt 0:01:29][%mdl 512]} 30. Kc3 {[%emt 0:01:49]} (30. Rxe3 Rxb4+) 30... Re4 {[%emt 0:00:21]} 31. b5 {[%emt 0:00:46]} Rxe5 {[%emt 0:00:09]} 32. a4 {[%emt 0:00:14]} f5 {[%emt 0:03:47]} ({Don't play} 32... Rxg5 33. Rxe3 h4 34. Rxe7 Rg3+ 35. Kb2 Rxh3 36. Rxa7 Rh2+ 37. Kb3 $17) 33. gxf6 {[%emt 0:01:16]} exf6 {[%emt 0:00:05]} 34. Kd3 {[%emt 0:00:58]} Kf7 {[%emt 0:01:54]} 35. Ke2 {[%emt 0:03:05]} Re4 {[%emt 0:13:00]} 36. Ra1 {[%emt 0:00:37] [#]} Rb4 $1 {[%emt 0:00:13]} 37. Ra3 $2 {[%emt 0:01:16][%mdl 8192] Now White is beyond hope.} (37. Kxe3 $17 {was the crucial defense.} f5 38. Kd2) 37... g5 {[%emt 0:00:38]} 38. Kxe3 {[%emt 0:00:09]} g4 {[%emt 0:00:12]} 39. hxg4 {[%emt 0:00:23]} hxg4 {[%emt 0:00:05]} 40. Kf2 {[%emt 0:01:14]} Kg6 {[%emt 0:00:20]} 41. Kg3 {[%emt 0:02:23]} Kg5 {[%emt 0:00:10] aiming for ...f5.} 42. Rc3 {[%emt 0:03:24]} Rxa4 {[%emt 0:00:14]} 43. Rc7 {[%emt 0:00:18]} Ra3+ {[%emt 0:00:05] Black mates.} 44. Kg2 {[%emt 0:00:24]} f5 {[%emt 0:00:05]} 45. Rc5 {[%emt 0:00:47]} Ra2+ {[%emt 0:00:24]} 46. Kg3 {[%emt 0:00:41]} Rd2 {[%emt 0:00:21]} 47. Re5 {[%emt 0:00:45]} Rd3+ {[%emt 0:00:06]} 48. Kf2 {[%emt 0:00:33]} Kf4 {[%emt 0:00:06] Weighted Error Value: White=0.72/Black=0.14 (very precise) .  Loses game:     	White=1     	---        Mistake:       	White=5     	---        Inaccurate:     	White=2     	Black=1      OK:         	White=8     	Black=21     Best:        	White=3     	---} 0-1